Cogmind - Beta 14 @@@ ROGUE MODE // 2024.09.02 @ 22:50:26 Player: Beef Result: Destroyed by G-47 Trooper with Particle Gun Performance ------------- Evolutions (0) 0 Regions Visited (2) 400 Robots Destroyed (17) 85 Value Destroyed (365) 365 Prototype IDs (0) 0 Alien Tech Used (0) 0 Bonus (0) 0 TOTAL SCORE: 850 Bonus ------- None Cogmind --------- Core Integrity 0/250 Matter 250/300 Energy 125/125 System Corruption 1% Temperature Warm (117) Movement Walking (190) Ox1 Location -10/Mines Parts ------- > --- POWER (1) -------- Light Ion Engine > --- PROPULSION (2) --- Aluminum Leg Aluminum Leg > --- UTILITY (2) ------ Small Storage Unit Improved Light Armor Plating > --- WEAPON (2) ------- Assault Rifle Bore Cannon > --- INVENTORY (8) ---- Light Ion Engine Improved Heat Sink Terrain Scanner Shock Absorption System Hacking Suite Peak State ------------ > --- POWER ------------ Light Ion Engine > --- PROPULSION ------- Aluminum Leg Aluminum Leg > --- UTILITY ---------- Small Storage Unit Improved Light Armor Plating > --- WEAPON ----------- Assault Rifle Bore Cannon > --- INVENTORY -------- Light Ion Engine Improved Heat Sink Terrain Scanner Shock Absorption System Hacking Suite [Rating: 14] Favorites ----------- Power Light Ion Engine Engine Light Ion Engine Propulsion Light Treads Treads Light Treads Leg Aluminum Leg Utility Small Storage Unit Device Structural Scanner Storage Small Storage Unit Protection Light Armor Plating Weapon Small Laser Energy Gun Small Laser Ballistic Gun Assault Rifle Ballistic Cannon Bore Cannon Launcher Grenade Launcher Build | -11 -10 -10 ------- Run | Yrd Mat Min Slots Evolved . | . . . Power . | . . . Propulsion . | . . . Utility . | . . . Weapon . | . . . Parts Attached 24 | 7 9 8 Power 3 | 1 2 . Engine 3 | 1 2 . Core . | . . . Reactor . | . . . Propulsion 8 | 2 4 2 Treads 4 | 2 2 . Leg 4 | . 2 2 Wheel . | . . . Hover . | . . . Flight . | . . . Utility 6 | 1 3 2 Device 3 | . 2 1 Storage 1 | 1 . . Processor . | . . . Hackware . | . . . Protection 2 | . 1 1 Artifact . | . . . Weapon 7 | 3 . 4 Energy Gun 3 | 2 . 1 Energy Cannon . | . . . Ballistic Gun 2 | 1 . 1 Ballistic Cannon 1 | . . 1 Launcher 1 | . . 1 Special Weapon . | . . . Impact Weapon . | . . . Slashing Weapon . | . . . Piercing Weapon . | . . . Special Melee Weapon . | . . . Unidentified Prototypes . | . . . Parts Lost 5 | . . 5 Power . | . . . Propulsion 1 | . . 1 Utility 1 | . . 1 Weapon 3 | . . 3 Highest Loss Streak 5 | . . 5 To Critical Strikes . | . . . Average Slot Usage (%) 95 | . 97 83 Engine 14 | . 14 14 Treads 20 | . 21 8 Leg 7 | . 6 14 Device 8 | . 9 4 Storage 14 | . 14 14 Protection 2 | . 1 8 Energy Gun 25 | . 28 4 Peak Build Rating 14 | 6 8 14 Average Rating 7 | 5 7 10 On Entrance 4 | . 6 8 Naked Turns . | . . . Heaviest Build 20 | 13 13 20 Greatest Support 40 | 40 40 40 Greatest Overweight (x) . | . . . Average Overweight (x) . | . . . Largest Inventory Capacity 8 | 8 8 8 Average Capacity 7 | 7 8 8 Most Carried 8 | 4 8 8 Average Carried 5 | 2 6 6 Final Capacity 8 | 8 8 8 Final Carried 8 | 4 8 5 Class Distribution -------------------- 100% | Mutant Dominant Class ---------------- Mutant | -10/Materials Mutant | -10/Mines Resources | -11 -10 -10 ----------- Run | Yrd Mat Min Matter Collected 492 | 241 152 99 Remotely . | . . . Salvage Created 527 | . 432 95 Parts 35 | . 31 4 Haulers Intercepted 1 | . 1 . Recyclers Shooed . | . . . Parts Field Recycled . | . . . Retrieved Matter . | . . . Parts Self-Destructed . | . . . Prevented . | . . . Kills | -11 -10 -10 ------- Run | Yrd Mat Min Combat Hostiles Destroyed 22 | . 11 11 Guns 14 | . 11 3 Cannons 1 | . . 1 AOE 7 | . . 7 Classes Destroyed 8 | . 6 2 Worker 1 | . 1 . Hauler 1 | . 1 . Operator 1 | . 1 . Watcher 1 | . 1 . Swarmer 6 | . 6 . Grunt 6 | . 5 1 Demolisher 1 | . . 1 Assembled 9 | . . 9 Best Kill Streak 10 | . 6 10 Combat Bots Only 10 | . 5 10 Max Kills in Single Turn 2 | . 1 2 Gunslinging . | . . . Exploded 2 | . . 2 Melee . | . . . Uniques/NPCs Destroyed . | . . . Combat | -11 -10 -10 -------- Run | Yrd Mat Min Hostile Shots Fired 93 | . 67 26 Missed 24 | . 18 6 Damage Taken 1097 | . 455 642 Core 251 | . 111 140 Absorbed by Shields . | . . . Core Remaining (%) 100 | 100 . . Volleys Fired 67 | . 54 13 Largest 2 | . 2 2 Hottest 80 | . 80 77 Shots Fired 126 | . 108 18 Gun 116 | . 108 8 Cannon 5 | . . 5 Launcher 5 | . . 5 Special . | . . . Kinetic 8 | . . 8 Thermal 113 | . 108 5 Explosive 5 | . . 5 Electromagnetic . | . . . Robot Hit Streak 13 | . 13 3 Robot Miss Streak 5 | . 5 2 Penetration Max . | . . . Secondary Targets 3 | . 3 . Max Gunslinging Chain 1 | . 1 . Shots Hit Robots 67 | . 59 8 Core Hits 49 | . 24 25 Critical Kills 1 | . . 1 Critical Parts Destroyed 2 | . . 2 Critical Strikes 3 | . . 3 Destroy 3 | . . 3 Melee Attacks . | . . . Impact . | . . . Slashing . | . . . Piercing . | . . . Sneak Attacks . | . . . Combat Hostiles . | . . . Follow-up Attacks . | . . . Damage Inflicted 1421 | . 695 726 Guns 767 | . 695 72 Cannons 74 | . . 74 Explosions 580 | . . 580 Melee . | . . . Ramming . | . . . Kinetic 110 | . . 110 Thermal 731 | . 695 36 Explosive 580 | . . 580 Electromagnetic . | . . . Impact . | . . . Slashing . | . . . Piercing . | . . . Highest Corruption 1 | . 1 1 Average Corruption 1 | . 1 1 Corruption Purged . | . . . Corruption Blocked . | . . . Effects 1 | . 1 . Data Loss (minor) 1 | . 1 . Overload Shots . | . . . Overflow Damage 10 | . . 10 Projectiles . | . . . Explosions 10 | . . 10 Melee . | . . . Knockbacks . | . . . Impact . | . . . Kinetic . | . . . Secondary . | . . . Self-Inflicted Damage . | . . . Shots . | . . . Rammed . | . . . Targets Rammed . | . . . Kicked . | . . . Crushed . | . . . Highest Temperature 394 | . 394 108 Average Temperature 114 | . 126 39 Received Heat Transfer 220 | . 126 94 Effects 3 | . 3 . Matter Decay 1 | . 1 . Short Circuit 1 | . 1 . Damage (minor) 1 | . 1 . Siege Activations . | . . . Robots Corrupted . | . . . Combat Hostiles . | . . . Parts Fried . | . . . Impact Corruptions . | . . . Robots Melted . | . . . Combat Hostiles . | . . . Parts Melted 2 | . 2 . Heat Transferred 1625 | . 1550 75 Parts Sabotaged . | . . . Parts Stolen . | . . . Parts Stripped . | . . . Power Chain Reactions . | . . . Alert | -11 -10 -10 ------- Run | Yrd Mat Min Peak Influence 362 | . 362 108 Initial 86 | . . 86 Average 149 | . 187 86 Maximum Alert Level 1 | . 1 . Low Security (%) 74 | 100 66 100 Level 1 25 | . 33 . Level 2 . | . . . Level 3 . | . . . Level 4 . | . . . Level 5 . | . . . High Security . | . . . Max Security . | . . . Squads Dispatched 3 | . 3 . Investigation 2 | . 2 . Extermination . | . . . Reinforcement 1 | . 1 . Assault . | . . . Garrison . | . . . Intercept . | . . . Searches Triggered . | . . . Construction Impeded . | . . . Haulers Reinforced . | . . . Active Scanning Responses . | . . . Cargo Convoy Interrupts . | . . . Stealth | -11 -10 -10 --------- Run | Yrd Mat Min Distress Signals 1 | . 1 . Communications Jammed . | . . . Distress Signals . | . . . Times Spotted 38 | . 21 17 Peak Tracking Total 15 | . 3 15 Tactical Retreats 2 | . 1 1 Traps | -11 -10 -10 ------- Run | Yrd Mat Min Traps Triggered . | . . . Indirectly . | . . . Trap Hack Attempts . | . . . Triggered . | . . . Disarmed . | . . . Reprogrammed . | . . . Reused . | . . . Traps Extracted . | . . . Installed . | . . . Triggered . | . . . Machines | -11 -10 -10 ---------- Run | Yrd Mat Min Machines Disabled . | . . . Max in Single Turn . | . . . Machines Repaired . | . . . Machines Dismantled . | . . . Machines Sabotaged . | . . . Overloaded Fab Kills . | . . . Hacking | -11 -10 -10 --------- Run | Yrd Mat Min Machines Accessed 4 | . 4 . Terminals 3 | . 3 . Fabricators . | . . . Repair Stations . | . . . Recycling Units 1 | . 1 . Scanalyzers . | . . . Garrison Access . | . . . Total Hacks 13 | . 13 . Successful 5 | . 5 . Failed 8 | . 8 . Catastrophic 1 | . 1 . Database Lockouts . | . . . Manual 7 | . 7 . Terminals 10 | . 10 . Fabricators . | . . . Repair Stations . | . . . Recycling Units 3 | . 3 . Scanalyzers . | . . . Garrison Access . | . . . Terminal Hacks 2 | . 2 . Level Access Points 1 | . 1 . Zone Layout 1 | . 1 . Fabricator Hacks . | . . . Repair Station Hacks . | . . . Recycling Unit Hacks . | . . . Scanalyzer . | . . . Garrison Access Hacks . | . . . Unauthorized Hacks 3 | . 3 . Terminals 3 | . 3 . Botnet 3 | . 3 . Fabricators . | . . . Repair Stations . | . . . Recycling Units . | . . . Scanalyzers . | . . . Garrison Access . | . . . Data Cores Recovered . | . . . Used . | . . . Hacking Detections 4 | . 4 . Full Trace Events 4 | . 4 . Feedback Events 1 | . 1 . Corruption 1 | . 1 . Feedback Blocked . | . . . Robot Schematics Acquired . | . . . Robots Built . | . . . Authchips . | . . . Time . | . . . Total Robot Build Rating . | . . . Part Schematics Acquired . | . . . Parts Built . | . . . Authchips . | . . . Time . | . . . Total Part Build Rating . | . . . Parts Repaired . | . . . Time . | . . . Parts Recycled . | . . . Recycled Matter . | . . . Retrieved Matter . | . . . Retrieved Components . | . . . Parts Scanalyzed . | . . . Part Schematics Acquired . | . . . Parts Damaged . | . . . Bothacking | -11 -10 -10 ------------ Run | Yrd Mat Min Used RIF Installer . | . . . Robots Hacked . | . . . Non-combat . | . . . Combat . | . . . Robot Hacks Applied . | . . . Relay Couplers Released . | . . . Fabnet Peak Effective % . | . . . Robots Rewired . | . . . Allies Hacked . | . . . Hacks Repelled . | . . . Allies | -11 -10 -10 -------- Run | Yrd Mat Min Total Allies . | . . . Largest Group . | . . . Highest-Rated Group . | . . . Highest-Rated Ally . | . . . Total Orders . | . . . Ally Attacks . | . . . Total Damage . | . . . Kills . | . . . Allies Corrupted . | . . . Allies Melted . | . . . Intel | -11 -10 -10 ------- Run | Yrd Mat Min Robot Analysis Total . | . . . Derelict Logs Recovered . | . . . Drone Launches . | . . . Drone Recoveries . | . . . Exploration | -11 -10 -10 ------------- Run | Yrd Mat Min Turns Passed 756 | 110 571 75 Spaces Moved 333 | 59 250 24 Core 4 | 4 . . Treads 231 | 55 168 8 Legs 98 | . 82 16 Wheels . | . . . Hover . | . . . Flight . | . . . Fastest Speed 50 | 50 120 120 Average Speed 146 | 152 146 133 Slowest Speed 160 | 160 160 160 Overloaded Moves . | . . . Propulsion Burnouts . | . . . Robots Hopped . | . . . Cave-ins Triggered . | . . . Exploration Rate (%) 19 | 3 43 11 Regions Visited 2 Branch Regions 1 Pre-discovered Areas . | . . . Known Exits Taken . | . . . Unknown Exits Taken 2 | 1 1 . Scrap Searched 1 | . . 1 Spaces Dug . | . . . Terrain Destroyed 35 | . . 35 Melee . | . . . Projectile 1 | . . 1 AOE 34 | . . 34 Terrain Rammed . | . . . Walls Destroyed . | . . . Machines Disabled . | . . . Actions | -11 -10 -10 --------- Run | Yrd Mat Min Total 469 | 76 346 47 Wait 25 | 7 18 . Move 331 | 58 249 24 Hop . | . . . Pick Up 14 | 4 8 2 Fast Attach 10 | 6 3 1 Attach 6 | . 1 5 Detach . | . . . Swap 8 | 1 5 2 Drop 8 | . 8 . Fire 67 | . 54 13 Melee . | . . . Ram . | . . . Kick . | . . . Crush . | . . . Escape Stasis . | . . . Rewire . | . . . Trap . | . . . Miscellaneous . | . . . Route ------- -11/Scrapyard -10/Materials (discovered 4 exits: *Mat x3 / [*Min]) -10/Mines History --------- Turn | Location | Event 31 | -11/Scrapyard | Discovered new exit (range 16) 111 | -11/Scrapyard | Entered Materials 308 | -10/Materials | Build established: Mutant 531 | -10/Materials | Discovered new exit (range 12) 652 | -10/Materials | Identified exit to Materials 668 | -10/Materials | Discovered new exit (range 6) 682 | -10/Materials | Entered Mines 683 | -10/Mines | Assembled infested the area 688 | -10/Mines | Assisted by a Guerilla fighting off Assembled 690 | -10/Mines | Core integrity fell below 50% 692 | -10/Mines | Met a Derelict bent on vengeance 720 | -10/Mines | Core integrity fell below 20% 743 | -10/Mines | Destroyed 10 combat bots 748 | -10/Mines | Lost 5 parts (1n1u3w) 757 | -10/Mines | Destroyed by G-47 Trooper with Particle Gun Last Messages --------------- 00722_ D-53 Grenadier destroyed. 00728_ Acquired Shock Absorption System. 00730_ Acquired Imp. Light Armor Plating. 00731_ The unstable cave ceiling collapses. 00731_ Acquired 29 matter. 00732_ The unstable cave ceiling collapses. 00732_ Acquired 2 matter. 00733_ The unstable cave ceiling collapses. 00736_ Acquired 27 matter. 00738_ The unstable cave ceiling collapses. 00746_ U-05 Engineer lays Concrete. 00748_ U-05 Engineer builds a Wall. 00748_ G-34 Mercenary suffers critical hit (Destroy). 00748_ Destroyed Ion Engine. 00748_ G-34 Mercenary destroyed. 00751_ HV Slug penetrates Wall. 00752_ U-05 Engineer builds a Wall. 00753_ Critical hit (Burn: +37). 00754_ G-47 Trooper suffers critical hit (Destroy). 00754_ Destroyed Aluminum Leg. Map ----- +----------------------------------------------------+ | ??????????????????????????????????????????? | | ??????????????????????????????????????????? | | ??????????????????????????????????????????? | | ??????????????????????????????????????????? | | ??????????????????????????????????????????? | | ??????????????????????????????????????????? | | ??????????????????????????????????????????? | | ??????????????????????????????????????????? | | ??????????????????????????????????????????? | | ??????????????????????????????????????????? | | ??????????????????????????????????????????? | | ??????????????????????????????????????????? | | ??????????????????????????????????????????? | | ??????????????????????????????????????????? | | ??????????????????????????????????????????? | | ??????????????????????????????????????????? | | ?????????????????????########?????????????? | | ?????????????????????# """ ??????????????? | | ?????????????????????# """ ??????????????? | | ?????????????????????# """???????????????? | | ?????????????????????# ???????????????? | | ?????????????????????? ????????????????? | | ??????????????????????? ????????????????? | | ???????????????????????#=#????????????????? | | ???????????????????????#g###??????????????? | | ???????????????????????#[@ ###????????????? | | ???????????????????????# ;##???????????? | | ??????????????????????## ##??????????? | | ??????????????????????# ### #?????? | | ????????????????#?????# % #?????? | | ???????????????## ##### #######?????? | | ?????????? # ## # # ####???????????? | | ????????? % # u####????????????? | | ????????# # ## # #???#????????? | | ?????????# #### #????????? | | ?????????# # #????????? | | ???????? #????????? | | ???????? ## # ##????????? | | ?????????? # #?????????? | | ?????????????## ## #?????????? | | ??????????????####?# # #?????????? | | ???????????????????## # ##?????????? | | ????????????????????## # # ##?????????? | | ??????????????????????####?#####??????????? | | | | | | | | | | | | | +----------------------------------------------------+ Best States ------------- Heat Dissipation 39 Energy Generation 10 Energy Capacity 250 Matter Stores 300 Matter Capacity 300 Sight Range 16 Terrain Scan Range 14 Terrain Scan Density 10 Armor Coverage 150 Evasion (%) 55 Recoil Reduction 2 Item Schematics ----------------- None Robot Schematics ------------------ None Fabricated ------------ Nothing Alien Tech Used ----------------- None Achievements -------------- None Challenges ------------ None Game ------ Seed CloakingForceRailgun Manual? 0 Play Time 00:06:12 Cumulative 111.5 hours Start 2024.09.02 @ 22:34:01 End 2024.09.02 @ 22:50:26 Sessions 1 Manual Loads 0 Difficulty Rogue Special Mode None Game No. 128 Rogue 128 Adventurer 0 Explorer 0 Win Type - Total 2 Types 2/0/0/0/0/0/0/0/0 Lore% 50 Gallery% 62 Achievement% 46 Wizard Run 0 Options --------- Layout 0 ASCII 0 Keyboard 1 Movement Numpad Keybinds 0 Fullscreen 2 Font 18/SmallcapsGlow Map View 76x50 Zoom Use 0% Tactical HUD 1 Map Filters NONE Filters NONE Steam 1 RUN: b9e1170e-c7f6-42f6-86ab-64a9e36ce38b